fUSD/lending_fUSD_20240913
["ID","MTS","AMOUNT","RATE_DAILY","PERIOD"]
[337937414,1726210255466,-500.0,0.00014044,2]
[337937415,1726210255475,-500.0,0.00014044,2]
[337937416,1726210255485,-500.0,0.00014044,2]
[337937417,1726210255494,-500.0,0.00014044,2]
[337937418,1726210255504,-500.0,0.00014044,2]
[337937419,1726210255513,-500.0,0.00014044,2]
[337937420,1726210255522,-997.65,0.00014044,2]
[337937421,1726210255532,-500.0,0.00014044,2]
[337937422,1726210255542,-500.0,0.00014044,2]
[337937423,1726210255551,-734.84,0.00014044,2]
[337937424,1726210255560,-960.8,0.00014044,2]
[337937425,1726210255570,-500.0,0.00014044,2]
[337937426,1726210255579,-500.0,0.00014044,2]
[337937427,1726210255588,-500.0,0.00014044,2]
[337937428,1726210255597,-1376.85,0.00014045,2]
[337937429,1726210255607,-724.24,0.00014045,2]
[337937430,1726210255616,-880.44,0.00014045,2]
[337937431,1726210255625,-1721.18,0.00014045,2]
[337937432,1726210255635,-500.0,0.00014045,2]
[337937433,1726210255645,-547.76,0.00014045,2]
[337937434,1726210255654,-1645.89,0.00014045,2]
[337937435,1726210255663,-500.0,0.00014045,2]
[337937436,1726210255673,-1337.47,0.00014045,2]
[337937437,1726210255682,-1862.11,0.00014045,2]
[337937438,1726210255691,-500.0,0.00014045,2]
[337937439,1726210255700,-1841.96,0.00014045,2]
[337937440,1726210255709,-1895.48,0.00014045,2]
[337937441,1726210255718,-500.0,0.00014045,2]
[337937442,1726210255727,-910.45,0.00014045,2]
[337937443,1726210255738,-500.0,0.00014045,2]
[337937444,1726210255750,-500.0,0.00014045,2]
[337937445,1726210255759,-1398.42,0.00014045,2]
[337937446,1726210255769,-543.42,0.00014045,2]
[337937447,1726210255778,-1068.71,0.00014045,2]
[337937448,1726210255787,-2162.4,0.00014045,2]
[337937449,1726210255797,-1012.56,0.00014045,2]
[337937450,1726210255806,-500.0,0.00014045,2]
[337937451,1726210255815,-1453.0,0.00014045,2]
[337937452,1726210255824,-759.8,0.00014045,2]
[337937453,1726210255834,-1511.79,0.00014045,2]
[337937454,1726210255846,-500.0,0.00014045,2]
[337937455,1726210255856,-500.0,0.00014045,2]
[337937456,1726210255865,-1372.58,0.00014045,2]
[337937457,1726210255874,-2253.41,0.00014045,2]
[337937458,1726210255884,-1650.95,0.00014045,2]
[337937459,1726210255892,-967.77,0.00014045,2]
[337937460,1726210255903,-500.0,0.00014045,2]
[337937461,1726210255913,-1177.63,0.00014045,2]
[337937462,1726210255923,-615.13,0.00014045,2]
[337937463,1726210255934,-1989.31,0.00014045,2]
[337937464,1726210255945,-1028.91,0.00014045,2]
[337937465,1726210255955,-1740.08,0.00014045,2]
[337937466,1726210255965,-863.13,0.00014045,2]
[337937467,1726210255976,-1948.81,0.00014045,2]
[337937468,1726210255987,-1226.1,0.00014045,2]
[337937469,1726210255997,-998.62,0.00014045,2]
[337937470,1726210256008,-1094.97,0.00014045,2]
[337937471,1726210256017,-544.73,0.00014045,2]
[337937472,1726210256027,-365.97,0.00014045,2]
[337937473,1726210256038,-993.64,0.00014045,2]
[337937474,1726210256047,-881.36,0.00014045,2]
[337937475,1726210256058,-1712.74,0.00014045,2]
[337937476,1726210256068,-795.65,0.00014045,2]
[337937477,1726210256077,-748.28,0.00014045,2]
[337937478,1726210256086,-500.0,0.00014045,2]
[337937479,1726210256095,-2044.23,0.00014045,2]
[337937480,1726210256104,-663.12,0.00014045,2]
[337937481,1726210256113,-500.0,0.00014045,2]
[337937482,1726210256122,-1782.19,0.00014045,2]
[337937483,1726210256130,-4907.89,0.00014045,2]
[337937484,1726210256139,-729.14,0.00014045,2]
[337937485,1726210256149,-736.59,0.00014045,2]
[337937486,1726210256158,-2453.01,0.00014045,2]
[337937487,1726210256168,-2282.41,0.00014045,2]
[337937488,1726210256178,-2759.94,0.00014045,2]
[337937489,1726210256190,-1975.26,0.00014045,2]
[337937490,1726210256200,-1604.79,0.00014045,2]
[337937491,1726210256211,-500.0,0.00014045,2]
[337937492,1726210256221,-7020.0118585,0.00014045,2]
[337937493,1726210256232,-3130.36,0.00014045,2]
[337937494,1726210256243,-500.0,0.00014045,2]
[337937495,1726210256252,-500.0,0.00014045,2]
[337937496,1726210256261,-510.03,0.00014045,2]
[337937497,1726210256270,-1512.28,0.00014045,2]
[337937498,1726210256279,-699.63,0.00014045,2]
[337937499,1726210256289,-1751.87,0.00014045,2]
[337937500,1726210256298,-957.91,0.00014045,2]
[337937501,1726210256306,-3257.95,0.00014045,2]
[337937502,1726210256315,-3217.86,0.00014045,2]
[337937503,1726210256324,-500.0,0.00014045,2]
[337937504,1726210256333,-2735.9,0.00014045,2]
[337937505,1726210256343,-693.65,0.00014045,2]
[337937506,1726210256352,-1440.25,0.00014045,2]
[337937507,1726210256362,-500.0,0.00014045,2]
[337937508,1726210256371,-20974.1617278,0.00014045,2]
[337937509,1726210256381,-500.0,0.00014045,2]
[337937510,1726210256390,-4839.81,0.00014045,2]
[337937511,1726210256400,-4971.08,0.00014045,2]
[337937512,1726210256409,-4220.0569941,0.00014045,2]
[337937513,1726210256423,-2576.61,0.00014045,2]
[337937514,1726210256432,-839.24,0.00014045,2]
[337937515,1726210256441,-1921.46,0.00014045,2]
[337937516,1726210256450,-500.0,0.00014045,2]
[337937517,1726210256460,-733.53,0.00014045,2]
[337937518,1726210256469,-2281.46,0.00014045,2]
[337937519,1726210256479,-151.0,0.00014045,2]
[337937520,1726210256489,-2052.83,0.00014045,2]
[337937521,1726210256499,-1631.43,0.00014045,2]
[337937522,1726210256509,-1705.5,0.00014045,2]
[337937523,1726210256518,-500.0,0.00014045,2]
[337937524,1726210256528,-500.0,0.00014045,2]
[337937525,1726210256537,-3678.43,0.00014045,2]
[337937526,1726210256546,-1759.02,0.00014045,2]
[337937527,1726210256556,-1651.73,0.00014045,2]
[337937528,1726210256565,-1556.19,0.00014045,2]
[337937529,1726210256574,-2571.0,0.00014045,2]
[337937530,1726210256583,-1770.67,0.00014045,2]
[337937531,1726210256593,-500.0,0.00014045,2]
[337937532,1726210256602,-1895.57,0.00014045,2]
[337937533,1726210256612,-2418.89,0.00014045,2]
[337937534,1726210256621,-4742.76,0.00014045,2]
[337937535,1726210256630,-2281.98,0.00014045,2]
[337937536,1726210256639,-923.0,0.00014046,2]
[337937537,1726210256648,-2066.33,0.00014046,2]
[337937538,1726210256658,-500.0,0.00014046,2]
[337937539,1726210256667,-662.92,0.00014046,2]
[337937540,1726210256676,-1696.35,0.00014046,2]
[337937541,1726210256685,-3291.14,0.00014046,2]
[337937542,1726210256694,-646.73,0.00014046,2]
[337937543,1726210256703,-2947.87,0.00014046,2]
[337937544,1726210256712,-1958.91,0.00014046,2]
[337937545,1726210256722,-40201.89,0.00014046,2]
[337937546,1726210256731,-1742.06,0.00014046,2]
[337937547,1726210256740,-1516.56,0.00014046,2]
[337937548,1726210256750,-1669.15,0.00014046,2]
[337937549,1726210256763,-1733.7,0.00014046,2]
[337937550,1726210256775,-1708.6,0.00014046,2]
[337937551,1726210256787,-1028.33,0.00014046,2]
[337937552,1726210256800,-1725.47,0.00014046,2]
[337937553,1726210256811,-3043.32,0.00014046,2]
[337937554,1726210256821,-1431.38,0.00014046,2]
[337937555,1726210256832,-2247.09,0.00014046,2]
[337937556,1726210256844,-4075.67,0.00014046,2]
[337937557,1726210256855,-744.35,0.00014046,2]
[337937558,1726210256867,-595.67,0.00014046,2]
[337937559,1726210256879,-7041.33,0.00014046,2]
[337937560,1726210256890,-27141.69,0.00014046,2]
[337937561,1726210256901,-3829.82,0.00014046,2]
[337937562,1726210256913,-8755.15,0.00014046,2]
[337937563,1726210256924,-1910.92,0.00014046,2]
[337937564,1726210256937,-2566.71,0.00014046,2]
[337937565,1726210256948,-762.72,0.00014046,2]
[337937566,1726210256959,-500.0,0.00014047,2]
[337937567,1726210256970,-890.6,0.00014047,2]
[337937568,1726210256981,-556.69,0.00014047,2]
[337937569,1726210256992,-500.0,0.00014047,2]
[337937570,1726210257004,-500.0,0.00014047,2]
[337937571,1726210257015,-599.04,0.00014047,2]
[337937572,1726210257026,-500.0,0.00014047,2]
[337937573,1726210257038,-1296.24,0.00014047,2]
[337937574,1726210257048,-500.0,0.00014047,2]
[337937575,1726210257058,-500.0,0.00014047,2]
[337937576,1726210257068,-500.0,0.00014047,2]
[337937577,1726210257079,-500.0,0.00014047,2]
[337937578,1726210257090,-500.0,0.00014047,2]
[337937579,1726210257101,-1438.2,0.00014047,2]
[337937580,1726210257112,-500.0,0.00014047,2]
[337937581,1726210257124,-500.0,0.00014047,2]
[337937582,1726210257135,-1224.7,0.00014047,2]
[337937583,1726210257147,-500.0,0.00014047,2]
[337937584,1726210257159,-1037.91,0.00014047,2]
[337937585,1726210257171,-500.0,0.00014047,2]
[337937586,1726210257182,-500.0,0.00014047,2]
[337937587,1726210257193,-500.0,0.00014047,2]
[337937588,1726210257203,-500.0,0.00014047,2]
[337937589,1726210257212,-500.0,0.00014047,2]
[337937590,1726210257222,-500.0,0.00014047,2]
[337937591,1726210257232,-926.48,0.00014047,2]
[337937592,1726210257243,-500.0,0.00014047,2]
[337937593,1726210257256,-956.52,0.00014047,2]
[337937594,1726210257267,-569.29,0.00014047,2]
[337937595,1726210257279,-695.38,0.00014047,2]
[337937596,1726210257289,-849.05,0.00014047,2]
[337937597,1726210257300,-960.69,0.00014047,2]
[337937598,1726210257312,-500.0,0.00014047,2]
[337937599,1726210257323,-500.0,0.00014047,2]
[337937600,1726210257335,-2228.05,0.00014047,2]
[337937601,1726210257346,-852.38,0.00014047,2]
[337937602,1726210257357,-3382.98,0.00014047,2]
[337937603,1726210257368,-1913.65,0.00014047,2]
[337937604,1726210257378,-1255.86,0.00014047,2]
[337937605,1726210257389,-1161.32,0.00014047,2]
[337937606,1726210257400,-1697.12,0.00014047,2]
[337937607,1726210257410,-1652.42,0.00014047,2]
[337937608,1726210257425,-1654.67,0.00014047,2]
[337937609,1726210257436,-1645.26,0.00014047,2]
[337937610,1726210257447,-1222.06,0.00014047,2]
[337937611,1726210257459,-1197.59,0.00014047,2]
[337937612,1726210257470,-751.98,0.00014047,2]
[337937613,1726210257480,-1332.16,0.00014047,2]
[337937614,1726210257492,-500.0,0.00014047,2]
[337937615,1726210257504,-500.0,0.00014047,2]
[337937616,1726210257515,-3139.26,0.00014047,2]
[337937617,1726210257526,-539.22,0.00014047,2]
[337937618,1726210257537,-1200.96,0.00014047,2]
[337937619,1726210257548,-2280.8,0.00014047,2]
[337937620,1726210257559,-500.0,0.00014047,2]
[337937621,1726210257570,-150.0,0.00014047,2]
[337937622,1726210257581,-500.0,0.00014047,2]
[337937623,1726210257592,-1028.49,0.00014047,2]
[337937624,1726210257603,-1816.35,0.00014047,2]
[337937625,1726210257613,-357.594923,0.00014047,2]
[337937626,1726210257624,-2740.22,0.00014047,2]
[337937627,1726210257636,-357.594923,0.00014047,2]
[337937628,1726210257646,-1710.12,0.00014047,2]
[337937629,1726210257657,-1331.66,0.00014047,2]
[337937630,1726210257668,-500.0,0.00014047,2]
[337937631,1726210257678,-685.49,0.00014047,2]
[337937632,1726210257688,-644.85,0.00014047,2]
[337937633,1726210257700,-1523.78,0.00014047,2]
[337937634,1726210257710,-500.0,0.00014047,2]
[337937635,1726210257721,-891.22,0.00014047,2]
[337937636,1726210257731,-500.0,0.00014047,2]
[337937637,1726210257742,-779.04,0.00014047,2]
[337937638,1726210257754,-751.18,0.00014047,2]
[337937639,1726210257764,-500.0,0.00014047,2]
[337937640,1726210257775,-2429.77,0.00014047,2]
[337937641,1726210257785,-500.0,0.00014047,2]
[337937642,1726210257797,-1454.87,0.00014047,2]
[337937643,1726210257807,-684.01,0.00014047,2]
[337937644,1726210257819,-562.56,0.00014047,2]
[337937645,1726210257830,-252.85014533,0.00014047,2]
[337937646,1726210257841,-2187.28,0.00014047,2]
[337937647,1726210257853,-500.0,0.00014047,2]
[337937648,1726210257864,-1373.53,0.00014047,2]
[337937649,1726210257874,-500.0,0.00014047,2]
[337937650,1726210257885,-500.0,0.00014047,2]
[337937651,1726210257895,-657.39,0.00014047,2]
[337937652,1726210257905,-579.86,0.00014047,2]
[337937653,1726210257917,-1321.01,0.00014047,2]
[337937654,1726210257927,-457.44476138,0.00014047,2]
[337937655,1726210257937,-516.09,0.00014047,2]
[337937656,1726210257947,-500.0,0.00014047,2]
[337937657,1726210257964,-500.0,0.00014047,2]
[337937658,1726210257975,-791.86,0.00014047,2]
[337937659,1726210257985,-634.09,0.00014047,2]
[337937660,1726210257996,-1453.89,0.00014047,2]
[337937661,1726210258007,-1772.65,0.00014047,2]
[337937662,1726210258018,-671.19,0.00014047,2]
[337937663,1726210258028,-500.0,0.00014047,2]
[337937664,1726210258038,-614.95,0.00014047,2]
[337937665,1726210258048,-557.22,0.00014047,2]
[337937666,1726210258059,-1682.12,0.00014047,2]
[337937667,1726210258071,-671.56,0.00014047,2]
[337937668,1726210258083,-1031.13,0.00014047,2]
[337937669,1726210258095,-957.07,0.00014047,2]
[337937670,1726210258106,-500.0,0.00014047,2]
[337937671,1726210258118,-3171.09,0.00014047,2]
[337937672,1726210258130,-954.63,0.00014047,2]
[337937673,1726210258140,-538.41,0.00014047,2]
[337937674,1726210258151,-500.0,0.00014047,2]
[337937675,1726210258162,-2191.26,0.00014047,2]
[337937676,1726210258173,-1230.93,0.00014047,2]
[337937677,1726210258184,-500.0,0.00014047,2]
[337937678,1726210258196,-500.0,0.00014047,2]
[337937679,1726210258207,-1222.55,0.00014047,2]
[337937680,1726210258220,-500.0,0.00014047,2]
[337937681,1726210258232,-1738.87,0.00014047,2]
[337937682,1726210258242,-1816.7,0.00014047,2]
[337937683,1726210258253,-585.45,0.00014047,2]
[337937684,1726210258263,-500.0,0.00014047,2]
[337937685,1726210258273,-1552.23,0.00014047,2]
[337937686,1726210258285,-500.0,0.00014047,2]
[337937687,1726210258295,-657.88,0.00014047,2]
[337937688,1726210258308,-1737.39,0.00014047,2]
[337937689,1726210258320,-500.0,0.00014047,2]
[337937690,1726210258332,-2154.77,0.00014047,2]
[337937691,1726210258342,-1267.08,0.00014048,2]
[337937692,1726210258353,-650.09,0.00014048,2]
[337937693,1726210258363,-500.0,0.00014048,2]
[337937694,1726210258375,-2220.15,0.00014048,2]
[337937695,1726210258387,-2541.68,0.00014048,2]
[337937696,1726210258397,-3221.15,0.00014048,2]
[337937697,1726210258409,-2126.3,0.00014048,2]
[337937698,1726210258426,-2645.59,0.00014048,2]
[337937699,1726210258437,-814.66,0.00014048,2]
[337937700,1726210258447,-2421.89,0.00014048,2]
[337937701,1726210258457,-500.0,0.00014048,2]
[337937702,1726210258468,-917.81,0.00014048,2]
[337937703,1726210258479,-1603.44,0.00014048,2]
[337937704,1726210258490,-3115.24,0.00014048,2]
[337937705,1726210258503,-5834.98136732,0.00014051,2]
[337937706,1726210258522,-164.41890103,0.00014055,2]
[337937707,1726210258533,-411.90281316,0.00014098,2]
[337937708,1726210258544,-158.8746436,0.00014098,2]
[337937709,1726210258555,-1148.38064164,0.00014098,2]
[337937710,1726210258567,-396096.91212765,0.000141,2]
[337937711,1726210258578,-26529.94205638,0.000141,3]
[337937712,1726210258588,-357.594923,0.000141,2]
[337937713,1726210258599,-357.594923,0.000141,2]
[337937714,1726210258609,-174.884118,0.000141,2]
[337937715,1726210258621,-152.0,0.00014166,3]
[337937716,1726210258633,-20607.21550417,0.00014184,2]
[337937717,1726210258643,-150.0,0.00014192,2]
[337937718,1726210258654,-150.0,0.00014192,2]
[337937719,1726210258665,-150.0,0.00014192,2]
[337937720,1726210258675,-150.0,0.00014192,2]
[337937721,1726210258687,-150.0,0.00014192,2]
[337937722,1726210258697,-150.0,0.00014192,2]
[337937723,1726210258711,-150.0,0.00014192,2]
[337937724,1726210258724,-150.0,0.00014192,2]
[337937725,1726210258737,-1000.0,0.000142,2]
[337937726,1726210258748,-6394.5073043,0.00014211,2]
[337937727,1726210258761,-18177.6068308,0.00014211,2]
[337937728,1726210258771,-3652.452886,0.00014211,2]
[337937729,1726210258782,-1592.1536738,0.00014213,2]
[337937730,1726210258793,-680.57,0.00014221,2]
[337937731,1726210258804,-500.0,0.00014221,2]
[337937732,1726210258815,-35928.76,0.00014221,2]
[337937733,1726210258826,-2132.67,0.00014221,2]
[337937734,1726210258837,-804.78,0.00014221,2]
[337937735,1726210258848,-5059.77,0.00014221,2]
[337937736,1726210258859,-1247.6,0.00014221,2]
[337937737,1726210258870,-637.81,0.00014221,2]
[337937738,1726210258882,-1040.49,0.00014221,2]
[337937739,1726210258893,-1436.71,0.00014221,2]
[337937740,1726210258904,-500.0,0.00014221,2]
[337937741,1726210258915,-1874.87,0.00014221,2]
[337937742,1726210258928,-3033.76,0.00014221,2]
[337937743,1726210258939,-978.85,0.00014221,2]
[337937744,1726210258951,-1459.79,0.00014221,2]
[337937745,1726210258962,-1787.21,0.00014221,2]
[337937746,1726210258973,-2126.29,0.00014221,2]
[337937747,1726210258985,-2770.49,0.00014221,2]
[337937748,1726210258996,-8023.77,0.00014221,2]
[337937749,1726210259007,-1691.04,0.00014221,2]
[337937750,1726210259018,-2782.85,0.00014221,2]
[337937751,1726210259029,-2344.85,0.00014221,2]
[337937752,1726210259040,-3034.42,0.00014221,2]
[337937753,1726210259052,-2091.4,0.00014221,2]
[337937754,1726210259064,-528.93,0.00014221,2]
[337937755,1726210259075,-1215.6,0.00014221,2]
[337937756,1726210259087,-1547.58,0.00014221,2]
[337937757,1726210259100,-4867.36,0.00014221,2]
[337937758,1726210259111,-5690.42,0.00014221,2]
[337937759,1726210259123,-771.97,0.00014221,2]
[337937760,1726210259134,-2160.65,0.00014221,2]
[337937761,1726210259145,-2032.81,0.00014221,2]
[337937762,1726210259156,-7869.74,0.00014221,2]
[337937763,1726210259170,-29975.64,0.00014221,2]
[337937764,1726210259180,-1347.86,0.00014221,2]
[337937765,1726210259191,-1834.03,0.00014221,2]
[337937766,1726210259202,-7109.28,0.00014221,2]
[337937767,1726210259214,-1788.3,0.00014221,2]
[337937768,1726210259226,-1806.63,0.00014221,2]
[337937769,1726210259236,-1542.67,0.00014221,2]
[337937770,1726210259247,-6264.05,0.00014221,2]
[337937771,1726210259258,-1042.36,0.00014221,2]
[337937772,1726210259268,-1099.93,0.00014221,2]
[337937773,1726210259279,-2655.07,0.00014221,2]
[337937774,1726210259289,-4708.25,0.00014221,2]
[337937775,1726210259300,-2372.4,0.00014221,2]
[337937776,1726210259311,-783.77,0.00014221,2]
[337937777,1726210259323,-6725.33,0.00014221,2]
[337937778,1726210259334,-5623.03,0.00014221,2]
[337937779,1726210259345,-586.52,0.00014221,2]
[337937780,1726210259357,-2909.95,0.00014221,2]
[337937781,1726210259368,-906.93,0.00014221,2]
[337937782,1726210259380,-526.39,0.00014221,2]
[337937783,1726210259391,-500.0,0.00014221,2]
[337937784,1726210259402,-500.0,0.00014221,2]
[337937785,1726210259414,-4737.4,0.00014221,2]
[337937786,1726210259427,-506.41,0.00014221,2]
[337937787,1726210259438,-849.22,0.00014221,2]
[337937788,1726210259449,-456.810203,0.00014247,2]
[337937789,1726210259460,-5769.0027501,0.00014311,2]
[337937790,1726210259471,-15381.0519337,0.00014311,2]
[337937791,1726210259481,-3084.8487779,0.00014311,2]
[337937792,1726210259494,-287.66302958,0.00014318,2]
[337937793,1726210259505,-500.0,0.00014318,2]
[337937794,1726210259516,-1644.65,0.00014318,2]
[337937795,1726210259527,-500.0,0.00014318,2]
[337937796,1726210259538,-936.11,0.00014318,2]
[337937797,1726210259548,-500.0,0.00014318,2]
[337937798,1726210259559,-500.0,0.00014318,2]
[337937799,1726210259569,-1410.91,0.00014318,2]
[337937800,1726210259581,-596.6,0.00014318,2]
[337937801,1726210259592,-500.0,0.00014318,2]
[337937802,1726210259603,-500.0,0.00014318,2]
[337937803,1726210259613,-500.0,0.00014318,2]
[337937804,1726210259624,-500.0,0.00014318,2]
[337937805,1726210259635,-500.0,0.00014318,2]
[337937806,1726210259647,-500.0,0.00014318,2]
[337937807,1726210259658,-500.0,0.00014318,2]
[337937808,1726210259669,-500.0,0.00014318,2]
[337937809,1726210259680,-997.65,0.00014318,2]
[337937810,1726210259690,-500.0,0.00014318,2]
[337937811,1726210259701,-500.0,0.00014318,2]
[337937812,1726210259711,-734.84,0.00014318,2]
[337937813,1726210259722,-960.8,0.00014318,2]
[337937814,1726210259733,-500.0,0.00014318,2]
[337937815,1726210259744,-500.0,0.00014318,2]
[337937816,1726210259755,-500.0,0.00014318,2]
[337937817,1726210259767,-1376.85,0.00014319,2]
[337937818,1726210259778,-724.24,0.00014319,2]
[337937819,1726210259788,-880.44,0.00014319,2]
[337937820,1726210259798,-1721.18,0.00014319,2]
[337937821,1726210259809,-500.0,0.00014319,2]
[337937822,1726210259820,-547.76,0.00014319,2]
[337937823,1726210259831,-1645.89,0.00014319,2]
[337937824,1726210259842,-500.0,0.00014319,2]
[337937825,1726210259854,-1337.47,0.00014319,2]
[337937826,1726210259865,-1862.11,0.00014319,2]
[337937827,1726210259876,-500.0,0.00014319,2]
[337937828,1726210259886,-1841.96,0.00014319,2]
[337937829,1726210259896,-1895.48,0.00014319,2]
[337937830,1726210259907,-500.0,0.00014319,2]
[337937831,1726210259919,-910.45,0.00014319,2]
[337937832,1726210259930,-500.0,0.00014319,2]
[337937833,1726210259941,-500.0,0.00014319,2]
[337937834,1726210259952,-1398.42,0.00014319,2]
[337937835,1726210259964,-543.42,0.00014319,2]
[337937836,1726210259975,-1068.71,0.00014319,2]
[337937837,1726210259988,-2162.4,0.00014319,2]
[337937838,1726210260001,-1012.56,0.00014319,2]
[337937839,1726210260013,-500.0,0.00014319,2]
[337937840,1726210260023,-1453.0,0.00014319,2]
[337937841,1726210260413,-759.8,0.00014319,2]
[337937842,1726210260432,-1511.79,0.00014319,2]
[337937843,1726210260460,-500.0,0.00014319,2]
[337937844,1726210260477,-500.0,0.00014319,2]
[337937845,1726210260487,-1372.58,0.00014319,2]
[337937846,1726210260496,-2253.41,0.00014319,2]
[337937847,1726210260506,-1650.95,0.00014319,2]
[337937848,1726210260516,-967.77,0.00014319,2]
[337937849,1726210260525,-500.0,0.00014319,2]
[337937850,1726210260534,-1177.63,0.00014319,2]
[337937851,1726210260544,-615.13,0.00014319,2]
[337937852,1726210260554,-1989.31,0.00014319,2]
[337937853,1726210260563,-1028.91,0.00014319,2]
[337937854,1726210260572,-1740.08,0.00014319,2]
[337937855,1726210260582,-863.13,0.00014319,2]
[337937856,1726210260592,-1948.81,0.00014319,2]
[337937857,1726210260602,-1226.1,0.00014319,2]
[337937858,1726210260612,-998.62,0.00014319,2]
[337937859,1726210260622,-1094.97,0.00014319,2]
[337937860,1726210260631,-544.73,0.00014319,2]
[337937861,1726210260640,-993.64,0.00014319,2]
[337937862,1726210260650,-881.36,0.00014319,2]
[337937863,1726210260659,-1712.74,0.00014319,2]
[337937864,1726210260668,-795.65,0.00014319,2]
[337937865,1726210260678,-748.28,0.00014319,2]
[337937866,1726210260687,-500.0,0.00014319,2]
[337937867,1726210260697,-2044.23,0.00014319,2]
[337937868,1726210260706,-663.12,0.00014319,2]
[337937869,1726210260716,-500.0,0.00014319,2]
[337937870,1726210260725,-1782.19,0.00014319,2]
[337937871,1726210260734,-4907.89,0.00014319,2]
[337937872,1726210260744,-729.14,0.00014319,2]
[337937873,1726210260753,-736.59,0.00014319,2]
[337937874,1726210260765,-2453.01,0.00014319,2]
[337937875,1726210260774,-2282.41,0.00014319,2]
[337937876,1726210260784,-2759.94,0.00014319,2]
[337937877,1726210260794,-1975.26,0.00014319,2]
[337937878,1726210260803,-1604.79,0.00014319,2]
[337937879,1726210260812,-500.0,0.00014319,2]
[337937880,1726210260822,-3130.36,0.00014319,2]
[337937881,1726210260831,-500.0,0.00014319,2]
[337937882,1726210260841,-500.0,0.00014319,2]
[337937883,1726210260850,-510.03,0.00014319,2]
[337937884,1726210260860,-1512.28,0.00014319,2]
[337937885,1726210260869,-699.63,0.00014319,2]
[337937886,1726210260879,-1751.87,0.00014319,2]
[337937887,1726210260888,-957.91,0.00014319,2]
[337937888,1726210260898,-3257.95,0.00014319,2]
[337937889,1726210260907,-3217.86,0.00014319,2]
[337937890,1726210260916,-500.0,0.00014319,2]
[337937891,1726210260926,-2735.9,0.00014319,2]
[337937892,1726210260936,-693.65,0.00014319,2]
[337937893,1726210260945,-1440.25,0.00014319,2]
[337937894,1726210260954,-500.0,0.00014319,2]
[337937895,1726210260964,-500.0,0.00014319,2]
[337937896,1726210260974,-4839.81,0.00014319,2]
[337937897,1726210260983,-4971.08,0.00014319,2]
[337937898,1726210260994,-2576.61,0.00014319,2]
[337937899,1726210261003,-839.24,0.00014319,2]
[337937900,1726210261018,-1921.46,0.00014319,2]
[337937901,1726210261027,-500.0,0.00014319,2]
[337937902,1726210261042,-733.53,0.00014319,2]
[337937903,1726210261052,-2281.46,0.00014319,2]
[337937904,1726210261062,-2052.83,0.00014319,2]
[337937905,1726210261074,-1631.43,0.00014319,2]
[337937906,1726210261083,-1705.5,0.00014319,2]
[337937907,1726210261092,-500.0,0.00014319,2]
[337937908,1726210261103,-500.0,0.00014319,2]
[337937909,1726210261112,-3678.43,0.00014319,2]
[337937910,1726210261122,-1759.02,0.00014319,2]
[337937911,1726210261131,-1651.73,0.00014319,2]
[337937912,1726210261141,-1556.19,0.00014319,2]
[337937913,1726210261151,-2571.0,0.00014319,2]